[Event "FIDE WYCC Girls U18 2023"]
[Site "Montesilvano"]
[Date "2023.11.14"]
[Round "2.29"]
[White "Egger, Stefanie"]
[Black "Monteiro, Helen Ramazzotte"]
[Result "1-0"]
[ECO "E95"]
[WhiteElo "1784"]
[BlackElo "1447"]
[Annotator "NA"]
[PlyCount "87"]
[EventDate "2023.11.13"]
[EventType "swiss"]
[EventCountry "ITA"]
[SourceTitle "playchess.com"]
[Source "ChessBase"]
[SourceQuality "1"]
[TimeControl "40/5400+30:1800+30"]

1. d4 {[%emt 0:00:03]} Nf6 {[%emt 0:00:35]} 2. c4 {[%emt 0:00:10]} g6 {[%emt 0:00:13]} 3. Nc3 {[%emt 0:00:05]} Bg7 {[%emt 0:00:09]} 4. e4 {[%emt 0:00:05]} d6 {[%emt 0:00:20]} 5. Nf3 {[%emt 0:00:06]} O-O {[%emt 0:00:39]} 6. Be2 {[%emt 0:00:07]} Nbd7 {[%emt 0:00:35]} 7. O-O {[%emt 0:00:13]} e5 {[%emt 0:00:48]} 8. Re1 {[%emt 0:00:24]} a5 {[%emt 0:01:06]} 9. Bf1 {[%emt 0:02:30]} Nh5 {[%emt 0:02:11]} 10. Rb1 {[%emt 0:07:40]} b6 {[%emt 0:05:00]} 11. d5 {[%emt 0:06:53]} Nc5 {[%emt 0:04:25]} 12. Bg5 {[%emt 0:13:19]} f6 {[%emt 0:03:43]} 13. Bh4 {[%emt 0:01:45]} g5 {[%emt 0:03:23]} 14. Nd2 {[%emt 0:00:32]} Nf4 {[%emt 0:08:16]} 15. Bg3 {[%emt 0:00:14]} Qe8 {[%emt 0:09:54]} 16. Nb5 {[%emt 0:04:16]} Qf7 {[%emt 0:05:01]} 17. b3 {[%emt 0:01:12]} h5 {[%emt 0:02:39]} 18. f3 {[%emt 0:00:18]} h4 {[%emt 0:02:05]} 19. Bf2 {[%emt 0:00:14]} Kh7 {[%emt 0:02:38]} 20. a3 {[%emt 0:00:58]} Rh8 {[%emt 0:01:03]} 21. b4 {[%emt 0:02:07]} Ncd3 {[%emt 0:04:07]} 22. Bxd3 {[%emt 0:04:48]} Nxd3 {[%emt 0:00:12]} 23. Rf1 {[%emt 0:01:25]} Nf4 {[%emt 0:01:39]} 24. Nc3 {[%emt 0:11:09]} Bd7 {[%emt 0:07:04]} 25. c5 {[%emt 0:04:39]} bxc5 {[%emt 0:06:43]} 26. bxc5 {[%emt 0:00:09]} dxc5 {[%emt 0:02:13]} 27. Bxc5 {[%emt 0:00:29]} Rab8 {[%emt 0:01:24]} 28. Qc2 {[%emt 0:01:47]} g4 {[%emt 0:00:47]} 29. Rxb8 {[%emt 0:03:38]} Rxb8 {[%emt 0:00:08]} 30. Be3 {[%emt 0:00:59]} h3 {[%emt 0:06:31]} 31. Bxf4 {[%emt 0:09:18]} hxg2 {[%emt 0:00:36]} 32. Kxg2 {[%emt 0:00:13]} gxf3+ {[%emt 0:01:08]} 33. Nxf3 {[%emt 0:00:17]} exf4 {[%emt 0:04:51]} 34. e5+ {[%emt 0:10:51]} Qg6+ {[%emt 0:00:23]} 35. Qxg6+ {[%emt 0:00:09]} Kxg6 {[%emt 0:00:04]} 36. e6 {[%emt 0:00:32]} Be8 {[%emt 0:00:35]} 37. Nd4 {[%emt 0:04:45]} Bh6 {[%emt 0:01:46]} 38. Kf3 {[%emt 0:05:41]} Bg5 {[%emt 0:07:24]} 39. h4 {[%emt 0:03:23]} Bxh4 {[%emt 0:01:17]} 40. Kxf4 {[%emt 0:00:00]} Bg5+ {[%emt 0:00:00]} 41. Ke4 {[%emt 0:01:28]} Rc8 {[%emt 0:07:09]} 42. Rb1 {[%emt 0:06:13]} c5 {[%emt 0:08:29]} 43. Nf5 {[%emt 0:01:11]} a4 {[%emt 0:08:18]} 44. Ne7+ {[%emt 0:08:02]} 1-0

[Event "FIDE WYCC Girls U18 2023"]
[Site "Montesilvano"]
[Date "2023.11.14"]
[Round "2.30"]
[White "Gavrileva, Anna"]
[Black "Graziani, Emma"]
[Result "1-0"]
[ECO "A76"]
[WhiteElo "1316"]
[BlackElo "1783"]
[Annotator "NA"]
[PlyCount "117"]
[EventDate "2023.11.13"]
[EventType "swiss"]
[EventCountry "ITA"]
[SourceTitle "playchess.com"]
[Source "ChessBase"]
[SourceQuality "1"]
[TimeControl "40/5400+30:1800+30"]

1. d4 {[%emt 0:00:02]} Nf6 {[%emt 0:00:15]} 2. Nf3 {[%emt 0:00:05]} e6 {[%emt 0:00:20]} 3. c4 {[%emt 0:06:44]} c5 {[%emt 0:01:00]} 4. d5 {[%emt 0:00:32]} exd5 {[%emt 0:00:21]} 5. cxd5 {[%emt 0:00:13]} d6 {[%emt 0:00:03]} 6. Nc3 {[%emt 0:00:39]} g6 {[%emt 0:00:31]} 7. e4 {[%emt 0:01:30]} Bg7 {[%emt 0:00:09]} 8. Be2 {[%emt 0:03:01]} O-O {[%emt 0:00:09]} 9. O-O {[%emt 0:00:18]} Re8 {[%emt 0:00:49]} 10. Qc2 {[%emt 0:02:03]} Na6 {[%emt 0:05:43]} 11. Bxa6 {[%emt 0:07:25]} bxa6 {[%emt 0:00:06]} 12. h3 {[%emt 0:07:23]} Nh5 {[%emt 0:02:45]} 13. Re1 {[%emt 0:06:08]} f5 {[%emt 0:03:52]} 14. Bg5 {[%emt 0:03:53]} Qc7 {[%emt 0:03:30]} 15. Qa4 {[%emt 0:16:17]} Bd7 {[%emt 0:09:38]} 16. Qxa6 {[%emt 0:01:01]} f4 {[%emt 0:04:39]} 17. e5 {[%emt 0:30:55]} dxe5 {[%emt 0:35:28]} 18. Ne4 {[%emt 0:01:12]} Qb6 {[%emt 0:06:02]} 19. Qxb6 {[%emt 0:00:42]} axb6 {[%emt 0:00:01]} 20. d6 {[%emt 0:00:11]} Re6 {[%emt 0:03:23]} 21. Be7 {[%emt 0:02:51]} h6 {[%emt 0:00:31]} 22. Nfd2 {[%emt 0:02:59]} Nf6 {[%emt 0:03:52]} 23. Nc4 {[%emt 0:00:49]} Nd5 {[%emt 0:00:22]} 24. Rad1 {[%emt 0:01:45]} Nxe7 {[%emt 0:01:57]} 25. Nxb6 {[%emt 0:00:48]} Ra7 {[%emt 0:05:21]} 26. Nxc5 {[%emt 0:01:37]} Nc6 {[%emt 0:00:47]} 27. Nbxd7 {[%emt 0:01:04]} Re8 {[%emt 0:00:30]} 28. Nb6 {[%emt 0:01:06]} Rb8 {[%emt 0:01:22]} 29. Nc4 {[%emt 0:00:39]} Bf6 {[%emt 0:01:22]} 30. d7 Rd8 {[%emt 0:02:11]} 31. Rd6 {[%emt 0:00:47]} Be7 {[%emt 0:05:04]} 32. Rxc6 {[%emt 0:00:57]} Bxc5 {[%emt 0:00:05]} 33. Rxc5 {[%emt 0:00:08]} Raxd7 {[%emt 0:00:04]} 34. Rcxe5 {[%emt 0:00:32]} g5 {[%emt 0:00:22]} 35. b3 {[%emt 0:00:50]} Rg7 {[%emt 0:00:18]} 36. f3 {[%emt 0:00:36]} h5 {[%emt 0:00:20]} 37. a4 {[%emt 0:00:14]} g4 {[%emt 0:00:08]} 38. hxg4 {[%emt 0:00:16]} hxg4 {[%emt 0:00:02]} 39. fxg4 {[%emt 0:00:31]} Rxg4 {[%emt 0:00:02]} 40. Kf2 {[%emt 0:00:00]} Kh8 {[%emt 0:00:00]} 41. Rh1+ {[%emt 0:01:28]} Kg7 {[%emt 0:00:15]} 42. a5 {[%emt 0:00:59]} Rg3 {[%emt 0:00:12]} 43. Rh3 {[%emt 0:02:36]} Rg6 {[%emt 0:00:08]} 44. Rf3 {[%emt 0:01:58]} Rb8 {[%emt 0:00:30]} 45. Nb6 {[%emt 0:01:24]} Kh6 {[%emt 0:01:02]} 46. Rxf4 {[%emt 0:00:38]} Rbg8 {[%emt 0:00:05]} 47. Ke3 {[%emt 0:01:04]} Rxg2 {[%emt 0:00:07]} 48. b4 {[%emt 0:01:03]} Rd8 {[%emt 0:00:06]} 49. b5 {[%emt 0:01:20]} Rgd2 {[%emt 0:00:19]} 50. a6 {[%emt 0:01:27]} Kg6 {[%emt 0:00:12]} 51. Ra4 {[%emt 0:01:26]} Kf6 {[%emt 0:00:10]} 52. Ree4 {[%emt 0:00:45]} Kf5 {[%emt 0:00:08]} 53. Ra3 {[%emt 0:01:09]} Rd1 {[%emt 0:00:14]} 54. Rf4+ {[%emt 0:00:45]} Ke5 {[%emt 0:00:03]} 55. Rf2 {[%emt 0:00:39]} Kd6 {[%emt 0:00:33]} 56. a7 {[%emt 0:02:40]} Re8+ {[%emt 0:00:08]} 57. Kf3 {[%emt 0:00:40]} Rf8+ {[%emt 0:00:16]} 58. Kg2 {[%emt 0:00:19]} Rg8+ {[%emt 0:00:07]} 59. Rg3 {[%emt 0:00:26]} 1-0

[Event "FIDE WYCC Girls U18 2023"]
[Site "Montesilvano"]
[Date "2023.11.14"]
[Round "2.31"]
[White "Soares, Sara Joana De Moura "]
[Black "Serina Arafat"]
[Result "1-0"]
[ECO "D35"]
[WhiteElo "1772"]
[BlackElo "1413"]
[Annotator "NA"]
[PlyCount "91"]
[EventDate "2023.11.13"]
[EventType "swiss"]
[EventCountry "ITA"]
[SourceTitle "playchess.com"]
[Source "ChessBase"]
[SourceQuality "1"]
[TimeControl "40/5400+30:1800+30"]

1. d4 {[%emt 0:00:36]} d5 {[%emt 0:00:08]} 2. c4 {[%emt 0:00:12]} e6 {[%emt 0:00:24]} 3. Nc3 {[%emt 0:00:22]} Nf6 {[%emt 0:01:59]} 4. cxd5 {[%emt 0:01:00]} exd5 {[%emt 0:00:21]} 5. Bg5 {[%emt 0:00:29]} Be7 {[%emt 0:01:52]} 6. e3 {[%emt 0:00:54]} O-O {[%emt 0:02:07]} 7. Bd3 {[%emt 0:01:45]} Nbd7 {[%emt 0:06:08]} 8. Nf3 {[%emt 0:03:47]} b6 {[%emt 0:03:23]} 9. O-O {[%emt 0:04:08]} Bb7 {[%emt 0:03:27]} 10. Rc1 {[%emt 0:05:14]} a6 {[%emt 0:09:20]} 11. Qe2 {[%emt 0:13:21]} Ne4 {[%emt 0:08:39]} 12. Bxe7 {[%emt 0:04:40]} Qxe7 {[%emt 0:00:09]} 13. Rfd1 {[%emt 0:09:45]} f5 {[%emt 0:13:29]} 14. a3 {[%emt 0:08:33]} Rf6 {[%emt 0:05:52]} 15. b4 {[%emt 0:02:59]} Rh6 {[%emt 0:03:58]} 16. Bc2 {[%emt 0:16:39]} g5 {[%emt 0:02:16]} 17. Nxe4 {[%emt 0:04:30]} fxe4 {[%emt 0:01:16]} 18. Nd2 {[%emt 0:00:31]} Qd6 {[%emt 0:04:31]} 19. Nf1 {[%emt 0:02:08]} a5 {[%emt 0:01:41]} 20. Qd2 {[%emt 0:04:25]} Nf6 {[%emt 0:15:22]} 21. Ng3 {[%emt 0:00:17]} Bc8 {[%emt 0:01:54]} 22. Bb3 {[%emt 0:03:44]} Bb7 {[%emt 0:05:53]} 23. Qc3 {[%emt 0:03:11]} c6 {[%emt 0:01:29]} 24. Rb1 {[%emt 0:03:22]} a4 {[%emt 0:01:26]} 25. Ba2 {[%emt 0:00:39]} b5 {[%emt 0:00:12]} 26. Rf1 {[%emt 0:02:14]} Rf8 {[%emt 0:00:40]} 27. Qe1 {[%emt 0:00:15]} Nh5 {[%emt 0:01:09]} 28. Nxe4 {[%emt 0:01:06]} Qg6 {[%emt 0:03:24]} 29. Nd2 {[%emt 0:01:05]} Qc2 {[%emt 0:00:57]} 30. Ra1 {[%emt 0:00:23]} Nf6 {[%emt 0:00:38]} 31. Bb1 {[%emt 0:00:58]} Qb2 {[%emt 0:00:51]} 32. Bd3 {[%emt 0:01:25]} Qc3 {[%emt 0:00:25]} 33. Qe2 {[%emt 0:00:21]} Bc8 {[%emt 0:00:37]} 34. Rfc1 {[%emt 0:00:24]} Qb2 {[%emt 0:00:18]} 35. Qd1 {[%emt 0:01:35]} Ng4 {[%emt 0:00:54]} 36. Rc2 {[%emt 0:00:52]} Rxf2 {[%emt 0:00:02]} 37. Rxb2 {[%emt 0:00:30]} Rxh2 {[%emt 0:00:02]} 38. Qf1 {[%emt 0:00:36]} Rxf1+ {[%emt 0:00:48]} 39. Rxf1 {[%emt 0:00:19]} Rh6 {[%emt 0:00:33]} 40. e4 {[%emt 0:00:00]} dxe4 {[%emt 0:00:00]} 41. Nxe4 {[%emt 0:01:19]} Ne3 {[%emt 0:09:54]} 42. Re1 {[%emt 0:03:51]} Nf5 {[%emt 0:03:04]} 43. Nxg5 {[%emt 0:00:42]} Bd7 {[%emt 0:03:25]} 44. Bxf5 {[%emt 0:01:10]} Bxf5 {[%emt 0:00:20]} 45. Rf2 {[%emt 0:00:04]} Bd7 {[%emt 0:00:54]} 46. Rf7 {[%emt 0:01:04]} 1-0

[Event "FIDE WYCC Girls U18 2023"]
[Site "Montesilvano"]
[Date "2023.11.14"]
[Round "2.32"]
[White "O'Carroll, Om"]
[Black "Mohd Azman, Farihah Nur Aisyah"]
[Result "1-0"]
[ECO "B13"]
[WhiteElo "1737"]
[BlackElo "1379"]
[Annotator "NA"]
[PlyCount "95"]
[EventDate "2023.11.13"]
[EventType "swiss"]
[EventCountry "ITA"]
[SourceTitle "playchess.com"]
[Source "ChessBase"]
[SourceQuality "1"]
[TimeControl "40/5400+30:1800+30"]

1. e4 {[%emt 0:00:02]} c6 {[%emt 0:00:07]} 2. d4 {[%emt 0:00:08]} d5 {[%emt 0:00:05]} 3. exd5 {[%emt 0:00:04]} cxd5 {[%emt 0:00:05]} 4. Bd3 {[%emt 0:00:06]} Nf6 {[%emt 0:01:01]} 5. c3 {[%emt 0:00:05]} e6 {[%emt 0:01:11]} 6. Bf4 {[%emt 0:00:52]} a6 {[%emt 0:00:55]} 7. Nd2 {[%emt 0:01:11]} Bd6 {[%emt 0:02:10]} 8. Bxd6 {[%emt 0:01:37]} Qxd6 {[%emt 0:00:08]} 9. Ngf3 {[%emt 0:00:46]} Nbd7 {[%emt 0:00:53]} 10. O-O {[%emt 0:01:05]} O-O {[%emt 0:03:32]} 11. Qe2 {[%emt 0:02:13]} Re8 {[%emt 0:06:36]} 12. Ne5 {[%emt 0:01:38]} b5 {[%emt 0:04:32]} 13. a3 {[%emt 0:02:09]} Nb6 {[%emt 0:03:43]} 14. Ndf3 {[%emt 0:06:02]} Bb7 {[%emt 0:03:16]} 15. Rae1 {[%emt 0:06:52]} Nc4 {[%emt 0:09:11]} 16. Ng5 {[%emt 0:08:58]} Re7 {[%emt 0:03:06]} 17. f4 {[%emt 0:04:13]} Rae8 {[%emt 0:05:04]} 18. Rf3 {[%emt 0:07:02]} h6 {[%emt 0:04:53]} 19. Nh3 {[%emt 0:03:46]} Qb6 {[%emt 0:27:13]} 20. Nf2 {[%emt 0:10:55]} a5 {[%emt 0:06:31]} 21. g4 {[%emt 0:04:46]} Ne4 {[%emt 0:11:29]} 22. Nxe4 {[%emt 0:08:53]} dxe4 {[%emt 0:00:11]} 23. Bxe4 {[%emt 0:00:11]} Bxe4 {[%emt 0:00:29]} 24. Qxe4 {[%emt 0:00:05]} Nd2 {[%emt 0:00:55]} 25. Qe2 {[%emt 0:06:45]} Nxf3+ {[%emt 0:00:13]} 26. Qxf3 {[%emt 0:00:12]} g6 {[%emt 0:02:44]} 27. Re2 {[%emt 0:03:54]} b4 {[%emt 0:01:58]} 28. axb4 {[%emt 0:01:44]} axb4 {[%emt 0:00:06]} 29. Nc6 {[%emt 0:00:20]} Rb7 {[%emt 0:01:06]} 30. Nxb4 {[%emt 0:00:52]} Ra7 {[%emt 0:00:46]} 31. f5 {[%emt 0:01:26]} Qb7 {[%emt 0:01:01]} 32. Qxb7 {[%emt 0:06:20]} Rxb7 {[%emt 0:00:05]} 33. d5 {[%emt 0:00:06]} gxf5 {[%emt 0:00:46]} 34. gxf5 {[%emt 0:00:37]} e5 {[%emt 0:00:33]} 35. f6 {[%emt 0:03:49]} Rd7 {[%emt 0:00:33]} 36. Nc6 {[%emt 0:01:05]} Kh7 {[%emt 0:00:36]} 37. c4 {[%emt 0:01:50]} Rd6 {[%emt 0:00:22]} 38. Rf2 {[%emt 0:04:08]} e4 {[%emt 0:00:32]} 39. Ne7 {[%emt 0:00:23]} Ra6 {[%emt 0:00:46]} 40. c5 {[%emt 0:00:00]} e3 {[%emt 0:00:00]} 41. Re2 {[%emt 0:01:38]} Rxf6 {[%emt 0:00:42]} 42. Rxe3 {[%emt 0:00:13]} Rb8 {[%emt 0:12:08]} 43. Re2 {[%emt 0:00:43]} Rb4 {[%emt 0:06:34]} 44. c6 {[%emt 0:05:58]} Rg4+ {[%emt 0:00:50]} 45. Rg2 {[%emt 0:00:07]} Re4 {[%emt 0:02:10]} 46. Rf2 {[%emt 0:00:27]} Rxe7 {[%emt 0:11:03]} 47. Rxf6 {[%emt 0:00:13]} Kg7 {[%emt 0:00:33]} 48. Rf2 {[%emt 0:00:49]} 1-0

[Event "FIDE WYCC Girls U18 2023"]
[Site "Montesilvano"]
[Date "2023.11.14"]
[Round "2.33"]
[White "Lunar Villaman, Sofia"]
[Black "Tikvesli, Ceylin"]
[Result "0-1"]
[ECO "A48"]
[WhiteElo "1305"]
[BlackElo "1736"]
[Annotator "NA"]
[PlyCount "144"]
[EventDate "2023.11.13"]
[EventType "swiss"]
[EventCountry "ITA"]
[SourceTitle "playchess.com"]
[Source "ChessBase"]
[SourceQuality "1"]
[TimeControl "40/5400+30:1800+30"]

1. d4 {[%emt 0:00:20]} Nf6 {[%emt 0:00:07]} 2. Bf4 {[%emt 0:00:08]} g6 {[%emt 0:00:07]} 3. Nf3 {[%emt 0:00:28]} Bg7 {[%emt 0:00:07]} 4. e3 {[%emt 0:00:04]} d6 {[%emt 0:00:06]} 5. Nbd2 {[%emt 0:00:08]} O-O {[%emt 0:00:22]} 6. Be2 {[%emt 0:00:10]} c5 {[%emt 0:00:06]} 7. c3 {[%emt 0:00:09]} Qb6 {[%emt 0:01:09]} 8. Qb3 {[%emt 0:05:59]} Be6 {[%emt 0:01:12]} 9. Bc4 {[%emt 0:19:16]} Bxc4 {[%emt 0:10:21]} 10. Nxc4 {[%emt 0:05:19]} Qa6 {[%emt 0:07:26]} 11. Na3 {[%emt 0:15:45]} Nc6 {[%emt 0:02:30]} 12. Qb5 {[%emt 0:13:43]} Qxb5 {[%emt 0:02:16]} 13. Nxb5 a6 {[%emt 0:00:30]} 14. Na3 {[%emt 0:01:03]} b5 {[%emt 0:00:20]} 15. dxc5 {[%emt 0:05:44]} dxc5 {[%emt 0:01:51]} 16. Ne5 {[%emt 0:03:23]} Rac8 {[%emt 0:03:33]} 17. Nc2 {[%emt 0:10:42]} Nd5 {[%emt 0:16:14]} 18. Nd7 {[%emt 0:01:38]} Rfd8 {[%emt 0:00:24]} 19. Nxc5 {[%emt 0:01:28]} Nxc3 {[%emt 0:00:31]} 20. Nxa6 {[%emt 0:06:41]} Na4 {[%emt 0:02:04]} 21. O-O {[%emt 0:03:12]} Nxb2 {[%emt 0:01:20]} 22. Rab1 {[%emt 0:02:01]} Rd2 {[%emt 0:07:46]} 23. Ncb4 {[%emt 0:02:39]} Na5 {[%emt 0:02:22]} 24. e4 {[%emt 0:01:08]} Rd7 {[%emt 0:02:11]} 25. Rbc1 {[%emt 0:00:56]} Nac4 {[%emt 0:00:20]} 26. Rfe1 {[%emt 0:00:38]} h6 {[%emt 0:09:23]} 27. h3 {[%emt 0:00:26]} g5 {[%emt 0:00:07]} 28. Be3 {[%emt 0:00:21]} e6 {[%emt 0:03:46]} 29. Nc5 {[%emt 0:00:28]} Rdd8 {[%emt 0:00:14]} 30. Nb7 {[%emt 0:00:24]} Re8 {[%emt 0:00:59]} 31. Nc5 {[%emt 0:00:30]} Bf8 {[%emt 0:01:57]} 32. Ncd3 {[%emt 0:00:38]} Red8 {[%emt 0:03:37]} 33. Nxb2 {[%emt 0:01:00]} Bxb4 {[%emt 0:00:27]} 34. Re2 {[%emt 0:00:17]} Ba3 {[%emt 0:00:32]} 35. Nxc4 {[%emt 0:00:42]} Bxc1 {[%emt 0:00:06]} 36. Bxc1 {[%emt 0:00:25]} Rxc4 {[%emt 0:00:09]} 37. Bb2 {[%emt 0:00:14]} Ra4 {[%emt 0:01:32]} 38. a3 {[%emt 0:00:38]} e5 {[%emt 0:00:41]} 39. Bxe5 {[%emt 0:00:39]} Re8 {[%emt 0:00:17]} 40. f4 {[%emt 0:00:00]} Rxa3 {[%emt 0:00:00]} 41. Rb2 {[%emt 0:08:35]} Ra5 {[%emt 0:02:29]} 42. Bc7 {[%emt 0:00:50]} Ra7 {[%emt 0:00:45]} 43. Bd6 {[%emt 0:04:25]} Rb7 {[%emt 0:02:09]} 44. fxg5 {[%emt 0:01:49]} Rxe4 {[%emt 0:00:45]} 45. gxh6 {[%emt 0:00:27]} b4 {[%emt 0:00:14]} 46. Kf2 {[%emt 0:01:02]} b3 {[%emt 0:01:30]} 47. Kf3 {[%emt 0:03:59]} Rc4 {[%emt 0:00:35]} 48. Be5 {[%emt 0:06:03]} Kh7 {[%emt 0:00:43]} 49. Bg7 {[%emt 0:01:23]} Rc2 {[%emt 0:00:23]} 50. Rb1 {[%emt 0:00:29]} b2 {[%emt 0:00:29]} 51. g4 {[%emt 0:02:12]} Rb3+ {[%emt 0:00:16]} 52. Ke4 {[%emt 0:00:20]} Rxh3 {[%emt 0:08:46]} 53. Rxb2 {[%emt 0:03:58]} Rxb2 {[%emt 0:08:52]} 54. Bxb2 {[%emt 0:00:10]} Kxh6 {[%emt 0:00:06]} 55. Bc1+ {[%emt 0:00:10]} Kg6 {[%emt 0:00:09]} 56. Kf4 {[%emt 0:00:46]} Rd3 {[%emt 0:03:30]} 57. Ke4 {[%emt 0:00:29]} Rc3 {[%emt 0:01:00]} 58. Be3 {[%emt 0:00:30]} f6 {[%emt 0:01:39]} 59. Bd2 {[%emt 0:01:04]} Rc4+ {[%emt 0:02:27]} 60. Kf3 {[%emt 0:00:28]} Kf7 {[%emt 0:00:18]} 61. Bf4 {[%emt 0:00:49]} Ke6 {[%emt 0:00:33]} 62. Be3 {[%emt 0:01:05]} Kd5 {[%emt 0:00:33]} 63. Bf2 {[%emt 0:00:38]} Ke6 {[%emt 0:05:39]} 64. Be3 {[%emt 0:00:47]} Ke5 {[%emt 0:00:24]} 65. Bd2 {[%emt 0:00:23]} Kd5 {[%emt 0:00:57]} 66. Be3 {[%emt 0:00:12]} Rb4 {[%emt 0:04:56]} 67. Bd2 {[%emt 0:00:25]} Ra4 {[%emt 0:01:19]} 68. Be3 {[%emt 0:00:10]} Ke5 {[%emt 0:00:17]} 69. Bd2 {[%emt 0:00:38]} Ra3+ {[%emt 0:00:20]} 70. Be3 {[%emt 0:00:36]} Rb3 {[%emt 0:00:39]} 71. Ke2 {[%emt 0:00:58]} Ke4 {[%emt 0:00:20]} 72. Bc1 {[%emt 0:00:35]} Rg3 {[%emt 0:00:27]} 0-1

[Event "FIDE WYCC Girls U18 2023"]
[Site "Montesilvano"]
[Date "2023.11.14"]
[Round "2.34"]
[White "Chavez Echeverria, Ana Karen"]
[Black "Nielsen-Refs, Ingrid Elmer"]
[Result "1/2-1/2"]
[ECO "E00"]
[WhiteElo "1230"]
[BlackElo "1676"]
[Annotator "NA"]
[PlyCount "89"]
[EventDate "2023.11.13"]
[EventType "swiss"]
[EventCountry "ITA"]
[SourceTitle "playchess.com"]
[Source "ChessBase"]
[SourceQuality "1"]
[TimeControl "40/5400+30:1800+30"]

1. d4 {[%emt 0:00:18]} Nf6 {[%emt 0:00:16]} 2. c4 {[%emt 0:00:34]} e6 {[%emt 0:01:07]} 3. Bf4 {[%emt 0:00:27]} Bb4+ {[%emt 0:03:36]} 4. Nc3 {[%emt 0:01:00]} d5 {[%emt 0:04:38]} 5. e3 {[%emt 0:00:21]} O-O {[%emt 0:01:25]} 6. Nf3 {[%emt 0:00:18]} Nbd7 {[%emt 0:01:39]} 7. Rc1 {[%emt 0:03:44]} Ne4 {[%emt 0:03:47]} 8. cxd5 {[%emt 0:03:35]} exd5 {[%emt 0:01:46]} 9. Bd3 {[%emt 0:00:58]} Ndf6 {[%emt 0:01:41]} 10. O-O {[%emt 0:00:56]} Bxc3 {[%emt 0:04:51]} 11. bxc3 {[%emt 0:00:14]} h6 {[%emt 0:01:10]} 12. Nd2 {[%emt 0:05:45]} Nxd2 {[%emt 0:08:05]} 13. Qxd2 {[%emt 0:00:08]} Ne4 {[%emt 0:00:26]} 14. Qc2 {[%emt 0:03:46]} f5 {[%emt 0:03:09]} 15. c4 {[%emt 0:05:47]} c6 {[%emt 0:02:18]} 16. cxd5 {[%emt 0:05:25]} cxd5 {[%emt 0:00:29]} 17. f3 {[%emt 0:02:35]} Ng5 {[%emt 0:03:56]} 18. Qb3 {[%emt 0:12:50]} Ne6 {[%emt 0:10:55]} 19. Be5 {[%emt 0:03:57]} Rf7 {[%emt 0:14:58]} 20. Rfd1 {[%emt 0:06:49]} Ng5 {[%emt 0:06:18]} 21. Rc5 {[%emt 0:03:39]} Be6 {[%emt 0:02:37]} 22. Rdc1 {[%emt 0:00:56]} Rc8 {[%emt 0:02:20]} 23. Rxc8 {[%emt 0:03:15]} Bxc8 {[%emt 0:00:05]} 24. Rc5 {[%emt 0:01:43]} Be6 {[%emt 0:00:59]} 25. Qc2 {[%emt 0:08:30]} Qe8 {[%emt 0:07:07]} 26. Rc7 {[%emt 0:02:48]} Rxc7 {[%emt 0:04:44]} 27. Qxc7 {[%emt 0:00:18]} Nf7 {[%emt 0:04:44]} 28. Qxb7 {[%emt 0:02:31]} Nxe5 {[%emt 0:00:46]} 29. dxe5 {[%emt 0:00:10]} Qa4 {[%emt 0:02:02]} 30. Qb3 {[%emt 0:01:01]} Qa5 {[%emt 0:00:41]} 31. Qb1 {[%emt 0:01:22]} Kh8 {[%emt 0:01:37]} 32. h3 {[%emt 0:00:42]} Qc5 {[%emt 0:00:58]} 33. Bxf5 {[%emt 0:08:24]} Qxe3+ {[%emt 0:00:14]} 34. Kh1 {[%emt 0:00:11]} Qxe5 {[%emt 0:00:37]} 35. Bxe6 {[%emt 0:00:45]} Qxe6 {[%emt 0:00:10]} 36. Qb8+ {[%emt 0:00:08]} Kh7 {[%emt 0:00:15]} 37. Qb1+ {[%emt 0:00:15]} Kh8 {[%emt 0:01:43]} 38. Qb8+ {[%emt 0:00:42]} Kh7 {[%emt 0:00:09]} 39. Qxa7 {[%emt 0:00:11]} Qe1+ {[%emt 0:00:29]} 40. Qg1 {[%emt 0:00:00]} Qa5 {[%emt 0:00:00]} 41. Qb1+ {[%emt 0:00:37]} Kg8 {[%emt 0:02:46]} 42. Qb8+ {[%emt 0:05:12]} Kh7 {[%emt 0:00:09]} 43. Qb1+ {[%emt 0:00:12]} Kg8 {[%emt 0:00:12]} 44. Qb8+ {[%emt 0:01:05]} Kh7 {[%emt 0:00:47]} 45. Qb1+ 1/2-1/2

[Event "FIDE WYCC Girls U18 2023"]
[Site "Montesilvano"]
[Date "2023.11.14"]
[Round "2.35"]
[White "Sukyte, Kotryna"]
[Black "Ham Corona, Ana Paola"]
[Result "0-1"]
[ECO "B38"]
[WhiteElo "1651"]
[BlackElo "1318"]
[Annotator "NA"]
[PlyCount "78"]
[EventDate "2023.11.13"]
[EventType "swiss"]
[EventCountry "ITA"]
[SourceTitle "playchess.com"]
[Source "ChessBase"]
[SourceQuality "1"]
[TimeControl "40/5400+30:1800+30"]

1. e4 {[%emt 0:00:03]} c5 {[%emt 0:00:39]} 2. Nf3 {[%emt 0:00:15]} g6 {[%emt 0:00:18]} 3. d4 {[%emt 0:00:09]} cxd4 {[%emt 0:00:22]} 4. Nxd4 {[%emt 0:00:12]} Bg7 {[%emt 0:00:16]} 5. c4 {[%emt 0:00:31]} Nc6 {[%emt 0:00:32]} 6. Be3 {[%emt 0:00:18]} Nf6 {[%emt 0:01:00]} 7. Nc3 {[%emt 0:00:35]} O-O {[%emt 0:02:27]} 8. Be2 {[%emt 0:00:51]} d6 {[%emt 0:01:49]} 9. Qd2 {[%emt 0:03:18]} Ng4 {[%emt 0:05:18]} 10. Bxg4 {[%emt 0:06:08]} Bxg4 {[%emt 0:00:38]} 11. f3 {[%emt 0:02:35]} Bd7 {[%emt 0:04:16]} 12. Nxc6 {[%emt 0:04:06]} Bxc6 {[%emt 0:01:57]} 13. Bh6 {[%emt 0:01:40]} Qb6 {[%emt 0:05:02]} 14. Bxg7 {[%emt 0:07:46]} Kxg7 {[%emt 0:00:22]} 15. h4 {[%emt 0:03:59]} h5 {[%emt 0:03:35]} 16. g4 {[%emt 0:08:56]} Rh8 {[%emt 0:05:29]} 17. g5 {[%emt 0:18:08]} Rhf8 {[%emt 0:02:12]} 18. O-O-O Rac8 {[%emt 0:03:13]} 19. b3 {[%emt 0:12:18]} Qc5 {[%emt 0:05:21]} 20. Kb2 {[%emt 0:01:45]} f5 {[%emt 0:07:00]} 21. gxf6+ {[%emt 0:09:49]} Rxf6 {[%emt 0:01:06]} 22. f4 {[%emt 0:04:26]} Rcf8 {[%emt 0:02:39]} 23. Rdf1 {[%emt 0:03:47]} a6 {[%emt 0:06:09]} 24. Rhg1 {[%emt 0:04:30]} b5 {[%emt 0:04:04]} 25. cxb5 {[%emt 0:03:47]} axb5 {[%emt 0:01:32]} 26. Rg5 {[%emt 0:00:26]} Qb6 {[%emt 0:01:57]} 27. f5 {[%emt 0:01:46]} b4 {[%emt 0:02:18]} 28. Nd5 {[%emt 0:00:26]} Bxd5 {[%emt 0:00:25]} 29. exd5 {[%emt 0:00:09]} Qc5 {[%emt 0:01:13]} 30. Rc1 {[%emt 0:01:27]} Qa5 {[%emt 0:01:21]} 31. Rxg6+ {[%emt 0:01:07]} Rxg6 {[%emt 0:00:14]} 32. fxg6 {[%emt 0:00:07]} Qb6 {[%emt 0:04:21]} 33. Rc2 {[%emt 0:00:52]} Qa5 {[%emt 0:02:14]} 34. Qg2 {[%emt 0:00:36]} Qa3+ {[%emt 0:00:43]} 35. Kb1 {[%emt 0:00:07]} Qa6 {[%emt 0:00:22]} 36. Kb2 {[%emt 0:00:59]} Qa3+ {[%emt 0:02:27]} 37. Kb1 {[%emt 0:00:11]} Qa6 {[%emt 0:00:09]} 38. Rf2 {[%emt 0:00:49]} Qd3+ {[%emt 0:01:43]} 39. Rc2 {[%emt 0:00:33]} Rf1+ 0-1